lending/lending_fUSD_20250411
["ID","MTS","AMOUNT","RATE_DAILY","PERIOD"]
[357728216,1744391440801,-2045.0,0.00023018,2]
[357728217,1744391440810,-320.42338576,0.00023018,2]
[357728218,1744391440822,-470.57661424,0.00023018,2]
[357728219,1744391440831,-679.69189677,0.00023018,2]
[357728234,1744391446336,-946.738,0.00020008,2]
[357728235,1744391446346,-227.30810323,0.00023018,2]
[357728236,1744391446355,-1193.98984875,0.00023018,2]
[357728237,1744391446391,-243.01015125,0.00023018,2]
[357728238,1744391446401,-143.86148876,0.00023018,2]
[357728252,1744391465166,-226.70183528,0.00019337,2]
[357728253,1744391467802,-185.22881038,0.00019337,2]
[357728254,1744391475666,-307.93200194,0.00019337,2]
[357728255,1744391497399,-127.09235404,0.00019337,2]
[357728256,1744391497426,-122.90764596,0.00020973,2]
[357728257,1744391498571,-185.02435598,0.00020973,2]
[357728258,1744391499601,-305.39,0.00022179,2]
[357728259,1744391499625,-194.61,0.00022273,2]
[357728260,1744391501184,-305.39,0.00022273,2]
[357728261,1744391502305,-500.0,0.00022273,2]
[357728262,1744391503372,-250.0,0.00022498,2]
[357728263,1744391503396,-200.0,0.00023018,2]
[357728264,1744391505946,-151.0,0.00023017,2]
[357728265,1744391505970,-287.66851051,0.00023018,2]
[357728266,1744391529048,-150.51640522,0.00020973,2]
[357728267,1744391542191,-220.36884451,0.00020973,2]
[357728268,1744391588529,-180.11088784,0.0002,2]
[357728269,1744391593884,-51.75432666,0.0002,2]
[357728270,1744391593907,-103.57124849,0.00020973,2]
[357728271,1744391706382,-156.01,0.00018883,2]
[357728272,1744391706406,-58.76118962,0.000215,2]
[357728273,1744391718422,-172.640946,0.0002032,2]
[357728274,1744391722806,-478.4076824,0.0002032,2]
[357728275,1744391729054,-635.9513716,0.0002032,2]
[357728276,1744391729078,-690.0486284,0.0002032,2]
[357728277,1744391731693,-904.48567649,0.0002032,2]
[357728278,1744391744301,-154.13364746,0.0002032,2]
[357728279,1744391759824,-150.0,0.0002032,2]
[357728280,1744391768272,-146.33204765,0.0002032,2]
[357728281,1744391768296,-3.66795235,0.0002032,2]
[357728282,1744391778188,-222.67521801,0.0002032,2]
[357728283,1744391783721,-627.61649703,0.0002032,2]
[357728284,1744391793891,-250.0,0.0002032,2]
[357728285,1744391811704,-222.04033261,0.0002032,2]
[357728286,1744391811726,-8.48546072,0.0002032,2]
[357728287,1744391815568,-164.13,0.0002032,2]
[357728288,1744391826756,-164.13,0.0002032,2]
[357728289,1744391843162,-305.01,0.0002032,2]
[357728290,1744391856807,-149.24453928,0.0002032,2]
[357728291,1744391856829,-152.03546072,0.0002032,2]
[357728292,1744391882351,-391.96453928,0.0002032,2]
[357728293,1744391882624,-20.08596072,0.0002032,2]
[357728294,1744391888173,-152.07901051,0.0002032,2]
[357728295,1744391901579,-305.81,0.0002032,2]
[357728296,1744391902705,-800.02502877,0.0002032,2]
[357728297,1744391916662,-304.15,0.0002032,2]
[357728298,1744391919358,-602.85,0.0002032,2]
[357728299,1744391931642,-301.53,0.0002032,2]
[357728300,1744391932411,-259.27582578,0.0002032,2]
[357728301,1744391947230,-152.58,0.0002032,2]
[357728302,1744391960524,-167.45018124,0.0002032,2]
[357728303,1744391975607,-152.58,0.0002032,2]
[357728305,1744391991436,-152.58,0.0002032,2]
[357728306,1744392006413,-251.00399298,0.0002032,2]
[357728307,1744392006436,-51.84600702,0.0002032,2]
[357728308,1744392008082,-523.15399298,0.0002032,2]
[357728309,1744392013954,-1962.44801931,0.0002032,2]
[357728310,1744392021204,-300.0,0.0002032,2]
[357728311,1744392037830,-302.15,0.0002032,2]
[357728312,1744392040917,-1387.55639744,0.0002032,2]
[357728325,1744392199944,365.13,0.00027425,30]
[357728359,1744392632221,-250.0,0.00019,2]
[357728361,1744392632231,-2614.99328701,0.000198,2]
[357728363,1744392632242,-697.71600099,0.000198,2]
[357728364,1744392632252,-2048.61398329,0.000199,2]
[357728365,1744392632263,-3332.6871248,0.000199,2]
[357728366,1744392632274,-7419.97526,0.000199,2]
[357728367,1744392632287,-1244.15535,0.000199,2]
[357728368,1744392632302,-351.841098,0.000199,2]
[357728369,1744392632313,-319.0,0.000199,2]
[357728370,1744392632324,-934.33,0.000199,2]
[357728371,1744392632336,-1880.00001,0.000199,2]
[357728372,1744392632395,-1866.06699477,0.000199,2]
[357728373,1744392632407,-784.01,0.000199,2]
[357728376,1744392638612,-48751.6399457,0.000199,2]
[357728378,1744392638622,-178.87278492,0.000199,2]
[357728380,1744392638633,-2799.27162748,0.000199,2]
[357728382,1744392638643,-250.0,0.0001995,2]
[357728384,1744392638652,-500.0,0.00019973,2]
[357728386,1744392638662,-500.0,0.00019973,2]
[357728388,1744392638671,-363.63512475,0.00019973,2]
[357728390,1744392638680,-175.91,0.0001999,2]
[357728392,1744392638689,-175.91,0.0001999,2]
[357728394,1744392638699,-175.91,0.0001999,2]
[357728396,1744392638708,-175.91,0.0001999,2]
[357728398,1744392638720,-150.0,0.00019999,2]
[357728400,1744392638730,-150.0,0.00019999,2]
[357728402,1744392638739,-150.0,0.00019999,2]
[357728404,1744392638749,-150.0,0.00019999,2]
[357728406,1744392638758,-150.0,0.00019999,2]
[357728408,1744392638768,-150.0,0.00019999,2]
[357728410,1744392638779,-150.0,0.00019999,2]
[357728412,1744392638788,-155.45592761,0.00019999,2]
[357728414,1744392638800,-264.25166728,0.00019999,2]
[357728416,1744392638810,-500.0,0.00019999,2]
[357728418,1744392638818,-231.82711527,0.00019999,2]
[357728419,1744392638828,-500.0,0.00019999,2]
[357728422,1744392638837,-194.62427861,0.00019999,2]
[357728423,1744392638846,-500.0,0.00019999,2]
[357728425,1744392638855,-500.0,0.00019999,2]
[357728427,1744392638864,-500.0,0.00019999,2]
[357728429,1744392638873,-500.0,0.00019999,2]
[357728431,1744392638883,-500.0,0.00019999,2]
[357728433,1744392638892,-500.0,0.00019999,2]
[357728435,1744392638902,-500.0,0.00019999,2]
[357728437,1744392638911,-500.0,0.00019999,2]
[357728438,1744392638920,-500.0,0.00019999,2]
[357728440,1744392638929,-500.0,0.00019999,2]
[357728442,1744392638938,-500.0,0.00019999,2]
[357728443,1744392638947,-500.0,0.00019999,2]
[357728445,1744392638956,-500.0,0.00019999,2]
[357728447,1744392638965,-238.4065738,0.00019999,2]
[357728449,1744392638974,-500.0,0.00019999,2]
[357728450,1744392638982,-500.0,0.00019999,2]
[357728452,1744392638991,-500.0,0.00019999,2]
[357728454,1744392639000,-500.0,0.00019999,2]
[357728456,1744392639010,-500.0,0.00019999,2]
[357728458,1744392639019,-500.0,0.00019999,2]
[357728460,1744392639028,-389.15224829,0.00019999,2]
[357728461,1744392639036,-2609206.04344787,0.0002,2]
[357728463,1744392639049,-340033.78431041,0.0002,2]
[357728487,1744392640351,-5561.91236038,0.0002,2]
[357728488,1744392640409,-7564.3617255,0.0002,2]
[357728489,1744392640465,-10377.59079056,0.0002,2]
[357728490,1744392640476,-2685661.19751093,0.0002,2]
[357728491,1744392640488,-1135.96567531,0.0002,2]
[357728492,1744392640499,-2643.30290429,0.0002,2]
[357728493,1744392640510,-407.98088,0.0002,2]
[357728494,1744392640525,-582.28073281,0.0002,2]
[357728495,1744392640539,-5715.12740809,0.0002,2]
[357728496,1744392640550,-987.74933509,0.0002,2]
[357728497,1744392640797,-774.42425797,0.0002,2]
[357728498,1744392640810,-2177.6,0.0002,2]
[357728499,1744392640823,-1242.13024363,0.0002,2]
[357728500,1744392640839,-1397636.45820017,0.0002,2]
[357728501,1744392640850,-79444.07623135,0.0002,2]
[357728502,1744392640860,-300.44946588,0.0002,2]
[357728503,1744392640871,-10343.56216848,0.0002,2]
[357728504,1744392640881,-298.04706559,0.0002,7]
[357728505,1744392640894,-45334.04923741,0.0002,4]
[357728506,1744392640904,-566417.1705973,0.0002,2]
[357728507,1744392640914,-2000.0,0.0002,4]
[357728508,1744392640924,-151.65,0.0002,2]
[357728510,1744392640934,-151.65,0.0002,2]
[357728511,1744392640943,-151.65,0.0002,2]
[357728513,1744392640953,-151.65,0.0002,2]
[357728514,1744392640962,-151.65,0.0002,2]
[357728515,1744392640972,-151.65,0.0002,2]
[357728516,1744392640981,-151.65,0.0002,2]
[357728517,1744392640990,-151.65,0.0002,2]
[357728518,1744392640999,-151.65,0.0002,2]
[357728519,1744392641009,-151.65,0.0002,2]
[357728520,1744392641018,-151.65,0.0002,2]
[357728521,1744392641027,-151.65,0.0002,2]
[357728522,1744392641037,-151.65,0.0002,2]
[357728523,1744392641046,-151.65,0.0002,2]
[357728524,1744392641056,-151.65,0.0002,2]
[357728525,1744392641065,-151.65,0.0002,2]
[357728526,1744392641075,-151.65,0.0002,2]
[357728527,1744392641084,-151.65,0.0002,2]
[357728528,1744392641093,-151.65,0.0002,2]
[357728529,1744392641102,-151.65,0.0002,2]
[357728530,1744392641111,-151.65,0.0002,2]
[357728531,1744392641121,-151.65,0.0002,2]
[357728532,1744392641130,-151.65,0.0002,2]
[357728533,1744392641140,-151.65,0.0002,2]
[357728534,1744392641149,-151.65,0.0002,2]
[357728535,1744392641158,-151.65,0.0002,2]
[357728536,1744392641168,-151.65,0.0002,2]
[357728537,1744392641177,-151.65,0.0002,2]
[357728538,1744392641186,-151.65,0.0002,2]
[357728539,1744392641196,-151.65,0.0002,2]
[357728540,1744392641205,-151.65,0.0002,2]
[357728541,1744392641214,-151.65,0.0002,2]
[357728542,1744392641224,-151.65,0.0002,2]
[357728543,1744392641233,-151.65,0.0002,2]
[357728544,1744392641242,-151.65,0.0002,2]
[357728545,1744392641251,-151.65,0.0002,2]
[357728546,1744392641261,-151.65,0.0002,2]
[357728547,1744392641270,-151.65,0.0002,2]
[357728548,1744392641280,-192.84558325,0.0002032,2]
[357728549,1744392641289,-3961.0,0.0002032,2]
[357728550,1744392641299,-301.0,0.0002032,2]
[357728551,1744392641308,-2045.0,0.0002032,2]
[357728552,1744392641318,-1287.0,0.0002032,2]
[357728553,1744392641328,-250.0,0.00020361,2]
[357728554,1744392641336,-1130.32,0.00020585,2]
[357728555,1744392641345,-2158.79390782,0.000207,2]
[357728556,1744392641365,-9108.11281864,0.00020799,2]
[357728557,1744392641376,-1000.0,0.00020842,2]
[357728558,1744392641387,-102193.76326425,0.00021,2]
[357728559,1744392641397,-300.0,0.00021,2]
[357728560,1744392641406,-166.18,0.00021188,2]
[357728561,1744392641416,-2000.0,0.00021429,4]
[357728562,1744392641426,-187.66881038,0.000215,2]
[357728563,1744392641436,-529.09,0.000215,2]
[357728564,1744392641447,-7034.28550607,0.000217,2]
[357728565,1744392641462,-2189.35,0.00021757,2]
[357728566,1744392641471,-5434.0,0.000218,2]
[357728567,1744392641481,-21385.0,0.000218,2]
[357728568,1744392641491,-250.0,0.0002189,2]
[357728569,1744392641502,-1691.95,0.00021918,2]
[357728570,1744392641512,-5559.0,0.000222,3]
[357728571,1744392641521,-204.3,0.00022265,2]
[357728572,1744392641531,-151.65,0.0002229,2]
[357728573,1744392641541,-94827.36,0.000223,2]
[357728574,1744392641551,-303.75,0.00022319,2]
[357728575,1744392641560,-304.98,0.00022319,2]
[357728576,1744392641570,-301.89,0.00022319,2]
[357728577,1744392641580,-303.55,0.00022319,2]
[357728578,1744392641590,-304.54,0.0002232,2]
[357728579,1744392641600,-305.74,0.0002232,2]
[357728580,1744392641609,-300.11,0.0002232,2]
[357728581,1744392641619,-304.93,0.0002232,2]
[357728582,1744392641629,-305.01,0.0002232,2]
[357728583,1744392641638,-301.28,0.0002232,2]
[357728584,1744392641648,-305.35,0.0002232,2]
[357728585,1744392641657,-300.43,0.0002232,2]
[357728586,1744392641667,-305.81,0.0002232,2]
[357728587,1744392641676,-304.15,0.0002232,2]
[357728588,1744392641687,-301.53,0.0002232,2]
[357728589,1744392641696,-301.7,0.0002232,2]
[357728590,1744392641705,-302.83,0.0002232,2]
[357728591,1744392641716,-304.97,0.0002232,2]
[357728592,1744392641729,-302.15,0.0002232,2]
[357728593,1744392641738,-302.19,0.0002232,2]
[357728594,1744392641747,-300.93,0.0002232,2]
[357728595,1744392641758,-300.76,0.0002232,2]
[357728596,1744392641767,-302.28,0.0002232,2]
[357728597,1744392641776,-303.39,0.0002232,2]
[357728598,1744392641786,-304.02,0.0002232,2]
[357728599,1744392641796,-305.1,0.0002232,2]
[357728600,1744392641806,-303.74,0.0002232,2]
[357728601,1744392641815,-303.06,0.0002232,2]
[357728602,1744392641825,-300.75,0.0002232,2]
[357728603,1744392641834,-301.41,0.0002232,2]
[357728604,1744392641843,-302.85,0.0002232,2]
[357728605,1744392641853,-2000.0,0.00022358,2]
[357728606,1744392641863,-246.43,0.000224,2]
[357728607,1744392641873,-529.09,0.000224,2]
[357728608,1744392641882,-599.5,0.00022491,2]
[357728609,1744392641891,-166.18,0.00022512,2]
[357728610,1744392641901,-500.0,0.00022521,2]
[357728611,1744392641911,-200.0,0.00022555,7]
[357728612,1744392641920,-300.0,0.00022578,2]
[357728613,1744392641930,-200.0,0.00022587,2]
[357728614,1744392641940,-5559.0,0.000226,5]
[357728615,1744392641949,-204.19955973,0.00022719,2]
[357728616,1744392641959,-200.0,0.00022834,2]
[357728617,1744392641968,-1130.32,0.00022849,2]
[357728618,1744392641978,-2000.0,0.00022857,4]
[357728619,1744392641987,-287.0,0.00023,2]
[357728620,1744392641998,-350.0,0.00023,2]
[357728621,1744392642007,-3668.4144027,0.00023012,2]
[357728622,1744392642017,-454.5827691,0.00023012,2]
[357728623,1744392642026,-4285.8515942,0.00023012,2]
[357728624,1744392642036,-3811.8012059,0.00023012,2]
[357728625,1744392642046,-176.64831271,0.00023012,2]
[357728626,1744392642055,-23199.873411,0.00023012,2]
[357728627,1744392642064,-10483.66535009,0.00023018,2]
[357728628,1744392642074,-272.18370166,0.00023018,2]
[357728629,1744392642083,-1000.0,0.00023018,2]
[357728630,1744392642093,-1000.0,0.00023018,2]
[357728631,1744392642103,-1000.0,0.00023018,2]
[357728632,1744392642113,-1000.0,0.00023018,2]
[357728633,1744392642124,-1000.0,0.00023018,2]
[357728634,1744392642133,-1000.0,0.00023018,2]
[357728635,1744392642143,-1000.0,0.00023018,2]
[357728636,1744392642153,-1000.0,0.00023018,2]
[357728637,1744392642162,-1000.0,0.00023018,2]
[357728638,1744392642172,-1000.0,0.00023018,2]
[357728639,1744392642181,-598.26047913,0.00023018,2]
[357728640,1744392642191,-856.386,0.00023018,2]
[357728641,1744392642200,-4534.8633167,0.00023041,2]
[357728642,1744392642210,-11149.5176357,0.00023057,2]
[357728643,1744392642220,-500.0,0.00023073,2]
[357728644,1744392642230,-487.1686922,0.00023092,2]
[357728645,1744392642240,-151.0,0.00023186,2]
[357728646,1744392642250,-207.4,0.00023186,2]
[357728647,1744392642260,-151.65,0.0002319,2]
[357728648,1744392642270,-246.43,0.000232,2]
[357728649,1744392642281,-529.09,0.000232,2]
[357728650,1744392642290,-47540.6488639,0.000232,2]
[357728651,1744392642299,-500.0,0.00023214,2]
[357728652,1744392642309,-437.28299883,0.0002322,2]
[357728653,1744392642319,-287.0,0.00023288,2]
[357728654,1744392642329,-304.17,0.00023314,2]
[357728655,1744392642340,-544.0,0.0002332,2]
[357728656,1744392642349,-1278.0,0.0002332,2]
[357728657,1744392642359,-907.0,0.0002332,2]
[357728658,1744392642369,-1437.0,0.0002332,2]
[357728659,1744392642380,-575.0,0.0002332,2]
[357728660,1744392642392,-4145.0,0.0002332,2]
[357728661,1744392642402,-3961.0,0.0002332,2]
[357728662,1744392642411,-152.0,0.0002332,2]
[357728663,1744392642421,-2044.0,0.0002332,2]
[357728664,1744392642431,-1286.0,0.0002332,2]
[357728665,1744392642440,-302.46,0.00023332,2]
[357728666,1744392642450,-1000.0,0.00023447,2]
[357728667,1744392642460,-487.1686922,0.00023483,2]
[357728668,1744392642470,-200.0,0.000235,2]
[357728669,1744392642479,-250.0,0.00023523,2]
[357728670,1744392642488,-305.74,0.00023547,2]
[357728671,1744392642498,-14496.6616,0.00023614,2]
[357728672,1744392642507,-166.66,0.000237,2]
[357728673,1744392642516,-1137.3304,0.000237,2]
[357728674,1744392642525,-16063.06,0.00023714,2]
[357728675,1744392642534,-1538.1654,0.000238,2]
[357728676,1744392642543,-616.75,0.00023836,2]
[357728677,1744392642552,-166.18,0.00023837,2]
[357728678,1744392642562,-487.1686922,0.00023875,2]
[357728679,1744392642572,-166.66,0.00023883,2]
[357728680,1744392642582,-24669.5355,0.000239,2]
[357728681,1744392642592,-1293.6604,0.000239,2]
[357728682,1744392642602,-500.0,0.00023973,2]
[357728683,1744392642611,-159.23227139,0.00023973,2]
[357728684,1744392642620,-500.0,0.00023973,2]
[357728685,1744392642629,-154.21914819,0.00023973,2]
[357728686,1744392642640,-500.0,0.00023973,2]
[357728687,1744392642650,-502.94704694,0.00023989,2]
[357728688,1744392642660,-596.50230964,0.00023989,2]
[357728689,1744392642669,-500.0,0.00023989,2]
[357728690,1744392642678,-500.0,0.00023989,2]
[357728691,1744392642687,-499.35729857,0.00023989,2]
[357728692,1744392642697,-502.87875035,0.00023989,2]
[357728693,1744392642706,-498.08333931,0.00023989,2]
[357728694,1744392642715,-47364.72023597,0.00024,2]
[357728695,1744392642728,-983.172495,0.00024,2]
[357728696,1744392642737,-42560.98747274,0.00024,2]
[357728697,1744392642747,-5000.00256409,0.00024,5]
[357728698,1744392642757,-784.77080605,0.0002402,2]
[357728699,1744392642766,-500.0,0.00024082,2]
[357728700,1744392642775,-287.0,0.00024164,2]
[357728701,1744392642784,-151.65,0.000242,2]
[357728702,1744392642794,-406.27405749,0.0002421,2]
[357728703,1744392642807,-3559.94215243,0.0002421,2]
[357728704,1744392642817,-303.8,0.0002422,2]
[357728705,1744392642826,-487.1686922,0.00024266,2]
[357728706,1744392642836,-2000.0,0.00024286,4]
[357728707,1744392642846,-304.29,0.00024298,2]
[357728708,1744392642855,-302.55,0.00024399,2]
[357728709,1744392642865,-302.57,0.00024535,2]
[357728710,1744392642874,-301.33,0.00024535,2]
[357728711,1744392642884,-302.63,0.00024547,2]
[357728712,1744392642894,-173.761438,0.00024555,2]
[357728713,1744392642904,-422.4738,0.00024555,2]
[357728714,1744392642914,-487.1686922,0.00024658,2]
[357728715,1744392642923,-1000.0,0.00024658,2]
[357728716,1744392642932,-166.66,0.00024678,2]
[357728717,1744392642942,-301.11,0.00024685,2]
[357728718,1744392642952,-151.65,0.0002479,2]
[357728719,1744392642961,-151.65,0.0002479,2]
[357728720,1744392642971,-1475.67,0.000248,2]
[357728721,1744392642980,-519.31,0.000248,2]
[357728722,1744392642989,-173.3,0.000248,2]
[357728723,1744392642998,-282.53,0.000248,2]
[357728724,1744392643008,-246.43,0.000248,2]
[357728725,1744392643017,-121489.14372514,0.000248,3]
[357728726,1744392643031,-648.59399846,0.000248,3]
[357728727,1744392643042,-609.1917933,0.000248,3]
[357728728,1744392643054,-2068.76,0.000248,3]
[357728729,1744392643065,-485.47874012,0.000248,3]
[357728749,1744392644283,-3547.52989799,0.000248,3]
[357728750,1744392644461,-299.96498578,0.000248,3]
[357728751,1744392645051,-268.61,0.000248,3]
[357728752,1744392645061,-3479.83587163,0.000248,3]
[357728753,1744392645077,-188218.92403763,0.000248,3]
[357728754,1744392645088,-337.27249606,0.000248,3]
[357728755,1744392645099,-17155.65647252,0.000248,3]
[357728756,1744392645110,-979.18872066,0.000248,3]
[357728759,1744392646418,-389.66369022,0.0002032,2]
[357728760,1744392646430,-401.33630978,0.0002032,2]
[357728761,1744392646439,-33.2972819,0.000248,3]
[357728762,1744392646669,-378.65136014,0.000248,3]
[357728763,1744392646684,-1242.72681904,0.000248,3]
[357728764,1744392646696,-498.45,0.000248,3]
[357728765,1744392646707,-8654.49885785,0.000248,3]
[357728766,1744392646719,-4142.5,0.000248,3]
[357728767,1744392646732,-41943.61992034,0.000248,3]
[357728800,1744393761983,340.78,0.00027425,30]
[357728810,1744393831535,-248.208154,0.000198,2]
[357728811,1744393831546,-293.26855382,0.00019828,2]
[357728812,1744393831555,-1211.0479,0.000199,2]
[357728813,1744393831565,-791.0,0.000208,2]
[357728814,1744393831575,-408.40626377,0.000208,2]
[357728815,1744393831604,-461.47199203,0.000208,2]
[357728839,1744393837467,-567.1217442,0.000208,2]
[357728840,1744393837477,-1278.0,0.000208,2]
[357728841,1744393837488,-544.0,0.000208,2]
[357728842,1744393837498,-907.0,0.000208,2]
[357728843,1744393837507,-575.0,0.000208,2]
[357728844,1744393837517,-4145.0,0.000208,2]
[357728845,1744393837526,-3961.0,0.000208,2]
[357728846,1744393837535,-194.0,0.000208,2]
[357728847,1744393837748,-150.0,0.000208,2]
[357728848,1744393837764,-152.0,0.000208,2]
[357728849,1744393837774,-165.239,0.000208,2]
[357728850,1744393837784,-185.942,0.000208,2]
[357728851,1744393837793,-231.284,0.000208,2]
[357728852,1744393837803,-698.0,0.000208,2]
[357728853,1744393837813,-250.0,0.000208,2]
[357728854,1744393837823,-176.877,0.000208,2]
[357728855,1744393837832,-1121.0,0.000208,2]
[357728856,1744393837843,-215.333,0.000208,2]
[357728857,1744393837852,-283.449,0.000208,2]
[357728858,1744393837863,-386.3,0.00021917,2]
[357728859,1744393837872,-304.26,0.00022724,2]
[357728860,1744393837882,-302.35,0.00022724,2]
[357728861,1744393837892,-300.25,0.00022724,2]
[357728862,1744393837907,-302.11,0.00022724,2]
[357728863,1744393837917,-302.8,0.00022724,2]
[357728864,1744393837926,-305.97,0.00022724,2]
[357728865,1744393837936,-303.72,0.00022724,2]
[357728866,1744393837945,-305.82,0.00022724,2]
[357728867,1744393837955,-498.37,0.00022799,3]
[357728868,1744393837964,-304.95,0.000228,2]
[357728869,1744393837973,-302.13,0.000228,2]
[357728870,1744393837983,-304.59,0.000228,2]
[357728871,1744393837993,-250.0,0.0002288,2]
[357728872,1744393838002,-1074.69,0.00022916,2]
[357728873,1744393838011,-17460.47,0.00023,2]
[357728875,1744393838021,-386.3,0.00023287,2]
[357728877,1744393838030,-300.0,0.00023759,2]
[357728879,1744393838039,-791.0,0.000238,2]
[357728881,1744393838049,-668.425,0.000238,2]
[357728883,1744393838061,-1278.0,0.000238,2]
[357728884,1744393838070,-479.961,0.000238,2]
[357728886,1744393838080,-907.0,0.000238,2]
[357728887,1744393838089,-575.0,0.000238,2]
[357728889,1744393838098,-4145.0,0.000238,2]
[357728890,1744393838108,-3961.0,0.000238,2]
[357728892,1744393838119,-150.0,0.000238,2]
[357728893,1744393838133,-152.0,0.000238,2]
[357728894,1744393838142,-150.0,0.000238,2]
[357728895,1744393838156,-283.66,0.000238,2]
[357728897,1744393838166,-952.729,0.000238,5]
[357728899,1744393838175,-250.0,0.00023993,2]
[357728900,1744393838185,-1000.0,0.00024222,2]
[357728902,1744393838195,-500.0,0.00024285,2]
[357728904,1744393838204,-166.67,0.00024408,2]
[357728906,1744393838214,-934.33,0.00024427,2]
[357728908,1744393838223,-150.0,0.00024621,2]
[357728910,1744393838232,-299.75,0.00024632,2]
[357728912,1744393838242,-335.58991963,0.0002464,2]
[357728914,1744393838251,-386.3,0.00024657,2]
[357728916,1744393838260,-250.0,0.00024692,2]
[357728918,1744393838269,-433.05,0.0002477,2]
[357728920,1744393838279,-151.0,0.00024772,2]
[357728921,1744393838287,-23199.873411,0.00024787,2]
[357728923,1744393838296,-3909.4374557,0.00024787,2]
[357728925,1744393838305,-4440.1995134,0.00024787,2]
[357728927,1744393838315,-4183.0314774,0.00024787,2]
[357728929,1744393838324,-529.09,0.000248,2]
[357728931,1744393838333,-151.0,0.000248,7]
[357728933,1744393838343,-200.0,0.000248,2]
[357728935,1744393838352,-200.0,0.000248,2]
[357728937,1744393838361,-200.0,0.000248,2]
[357728939,1744393838371,-18269.8342552,0.00024804,2]
[357728941,1744393838380,-302.45,0.00024821,2]
[357728943,1744393838389,-304.09,0.00024821,2]
[357728945,1744393838402,-300.78,0.00024821,2]
[357728947,1744393838412,-200.0,0.00024889,7]
[357728949,1744393838421,-151.0,0.000249,7]
[357728951,1744393838430,-180.0,0.00024932,2]
[357728953,1744393838440,-238.70231549,0.00025,2]
[357728955,1744393838449,-161.15320332,0.00025,2]
[357728957,1744393838459,-400.46470347,0.00025,2]
[357728959,1744393838469,-771.57997542,0.00025,2]
[357728961,1744393838479,-256.34392845,0.00025,2]
[357728963,1744393838488,-622.04067623,0.00025,2]
[357728965,1744393838497,-1758.48726018,0.00025,2]
[357728966,1744393838507,-400.0,0.00025,2]
[357728968,1744393838516,-180.0,0.00025,2]
[357728970,1744393838526,-301.22,0.00025018,2]
[357728972,1744393838535,-302.65,0.00025018,2]
[357728974,1744393838544,-200.0,0.00025048,2]
[357728976,1744393838553,-200.0,0.00025048,2]
[357728978,1744393838563,-3255.0504242,0.000251,2]
[357728980,1744393838573,-166.18,0.00025161,2]
[357728982,1744393838582,-1074.69,0.0002518,2]
[357728984,1744393838592,-200.0,0.00025298,2]
[357728986,1744393838601,-200.0,0.00025298,2]
[357728988,1744393838611,-282.4454538,0.000253,10]
[357728990,1744393838621,-301.19,0.0002532,2]
[357728992,1744393838630,-302.23,0.0002532,2]
[357728994,1744393838640,-200.0,0.00025551,2]
[357728996,1744393838653,-200.0,0.00025551,2]
[357728998,1744393838663,-166.66,0.00025655,2]
[357729000,1744393838674,-999.99,0.00025786,2]
[357729002,1744393838683,-4659.52,0.00025786,2]
[357729004,1744393838692,-746.21,0.00025786,2]